Cogmind - Beta 16 --- EXPLORER MODE // 2026.01.20 @ 12:14:38 Player: K.K.Y. Result: Destroyed by V7-3LM(R) with Subdweller Laser Performance ------------- Evolutions (0) 0 Regions Visited (3) 600 Robots Destroyed (46) 230 Value Destroyed (1049) 1049 Prototype IDs (13) 260 Alien Tech Used (0) 0 Bonus (-468) -468 TOTAL SCORE: 1671 Bonus ------- Friendly Fire -468 Cogmind --------- Core Integrity 0/250 Matter 300/300 Energy 100/100 System Corruption 0% Temperature Cool (6) Movement Treading (320) Ox2 Location -10/Subcaves Parts ------- > --- POWER (1) -------- (None) > --- PROPULSION (2) --- Light Treads > --- UTILITY (3) ------ High-capacity Storage Unit Light Armor Plating > --- WEAPON (2) ------- Medium Laser > --- INVENTORY (20) --- Dirty Datajack (20) SUBCON Basin (Full) Peak State ------------ > --- POWER ------------ Makeshift Power Source > --- PROPULSION ------- Makeshift Leg Makeshift Leg > --- UTILITY ---------- Structural Scanner Experimental Sensor Array Improved Terrain Scanner > --- WEAPON ----------- Makeshift Laser Beamcaster > --- INVENTORY -------- Improved Heat Sink High-capacity Storage Unit Light Armor Plating Medium Laser Mining Laser [Rating: 34] Favorites ----------- Power Makeshift Power Source Engine Makeshift Power Source Propulsion Light Treads Treads Light Treads Leg Makeshift Leg Utility Structural Scanner Device Structural Scanner Storage High-capacity Storage Unit Protection Light Armor Plating Weapon Medium Laser Energy Gun Medium Laser Special Weapon Mining Laser Build | -11 -10 -10 -10 ------- Run | Yrd Mat Min Sub Slots Evolved 1 | . 1 . . Power . | . . . . Propulsion . | . . . . Utility 1 | . 1 . . Weapon . | . . . . Parts Attached 24 | 6 6 3 9 Power 3 | 1 1 . 1 Engine 3 | 1 1 . 1 Core . | . . . . Reactor . | . . . . Propulsion 7 | 2 1 1 3 Treads 5 | 2 1 1 1 Leg 2 | . . . 2 Wheel . | . . . . Hover . | . . . . Flight . | . . . . Utility 8 | 1 2 2 3 Device 6 | 1 2 2 1 Storage 1 | . . . 1 Processor . | . . . . Hackware . | . . . . Protection 1 | . . . 1 Artifact . | . . . . Weapon 6 | 2 2 . 2 Energy Gun 5 | 2 1 . 2 Energy Cannon . | . . . . Ballistic Gun . | . . . . Ballistic Cannon . | . . . . Launcher . | . . . . Special Weapon 1 | . 1 . . Impact Weapon . | . . . . Slashing Weapon . | . . . . Piercing Weapon . | . . . . Special Melee Weapon . | . . . . Unidentified Prototypes 1 | . . 1 . Parts Lost 10 | . . . 10 Power 1 | . . . 1 Propulsion 2 | . . . 2 Utility 4 | . . . 4 Weapon 3 | . . . 3 Highest Loss Streak 4 | . . . 4 To Critical Strikes . | . . . . Average Backups 3 | 1 4 3 3 Power . | . . . . Propulsion . | . . . . Utility 2 | 1 2 2 2 Weapon 1 | . 1 1 1 Tool/Special . | . . . . Unused Backups 1 | . . . 1 Power . | . . . . Propulsion . | . . . . Utility . | . . . . Weapon . | . . . . Tool/Special 1 | . . . 1 Average Slot Usage (%) 89 | . 91 99 83 Engine 11 | . 12 12 10 Treads 15 | . 25 25 5 Leg 8 | . . . 16 Device 29 | . 28 36 25 Energy Gun 23 | . 24 25 22 Peak Build Rating 34 | 6 10 21 34 Average Rating 18 | 4 7 18 25 On Entrance 9 | . 6 10 21 Avg Prop Armor Cover (%) . | . . . . Naked Turns . | . . . . Heaviest Build 45 | 10 15 15 45 Greatest Support 40 | 40 40 40 40 Greatest Overweight (x) 2 | 1 . . 2 Average Overweight (x) . | . . . . Largest Inventory Capacity 20 | 5 5 5 20 Average Capacity 5 | 5 5 5 6 Most Carried 18 | 5 5 5 18 Average Carried 4 | 1 4 3 5 Final Capacity 20 | 5 5 5 20 Final Carried 16 | 3 5 5 16 Class Distribution -------------------- 52% | Hacker-Mutant 24% | Hacker-Skirmisher 14% | Scavenger-Mutant 8% | Scavenger-Skirmisher Dominant Class ---------------- Hacker-Mutant | -10/Materials Hacker-Skirmisher | -10/Mines Hacker-Mutant | -10/Subcaves Resources | -11 -10 -10 -10 ----------- Run | Yrd Mat Min Sub Matter Collected 480 | 260 70 30 120 Remotely . | . . . . Salvage Created 1490 | 200 531 74 685 Parts 96 | 13 33 6 44 Haulers Intercepted 2 | . 2 . . Recyclers Shooed . | . . . . Parts Field Recycled . | . . . . Retrieved Matter . | . . . . Parts Self-Destructed . | . . . . Prevented . | . . . . Parts Restored . | . . . . Kills | -11 -10 -10 -10 ------- Run | Yrd Mat Min Sub Combat Hostiles Destroyed 30 | . 11 3 16 Guns 29 | . 10 3 16 Classes Destroyed 13 | 2 5 1 5 Tunneler 5 | 5 . . . Hauler 2 | . 2 . . Recycler 1 | 1 . . . Mechanic 1 | . 1 . . Turret 2 | . . . 2 Watcher 2 | . 2 . . Swarmer 10 | . 4 2 4 Grunt 7 | . 7 . . Sentry 1 | . . . 1 Demolisher 1 | . . 1 . Artisan 4 | . . . 4 Subdweller 11 | . . . 11 Zionite 2 | . . . 2 Thug 1 | . . 1 . Best Kill Streak 5 | 4 4 2 5 Combat Bots Only 4 | . 2 2 4 Max Kills in Single Turn 1 | 1 1 1 1 Gunslinging . | . . . . Exploded . | . . . . Melee . | . . . . Uniques/NPCs Destroyed . | . . . . Combat | -11 -10 -10 -10 -------- Run | Yrd Mat Min Sub Hostile Shots Fired 171 | . 33 7 131 Missed 55 | . 10 3 42 Hits 116 | . 23 4 89 Projectile 116 | . 23 4 89 AOE 4 | . . 4 . Critical Strikes 1 | . . . 1 Damage Taken 1000 | . 160 58 782 Core 255 | . 23 11 221 Absorbed by Shields . | . . . . Ignored by Resistances 632 | . 103 41 488 Core Remaining (%) 100 | 100 . . . Volleys Fired 154 | 8 38 13 95 Largest 2 | 2 2 2 2 Hottest 200 | 100 150 115 200 Shots Fired 274 | 16 76 23 159 Gun 268 | 16 75 23 154 Cannon . | . . . . Launcher . | . . . . Special 6 | . 1 . 5 Kinetic . | . . . . Thermal 274 | 16 76 23 159 Explosive . | . . . . Electromagnetic . | . . . . Robot Hit Streak 42 | 12 33 16 42 Robot Miss Streak 4 | . 2 3 4 Penetration Max . | . . . . Secondary Targets 4 | . 2 . 2 Max Gunslinging Chain 1 | . 1 . 1 Shots Hit Robots 202 | 12 61 19 110 Core Hits 100 | 7 28 17 48 Critical Kills . | . . . . Critical Parts Destroyed . | . . . . Critical Strikes 14 | 1 3 1 9 Burn 14 | 1 3 1 9 Melee Attacks . | . . . . Impact . | . . . . Slashing . | . . . . Piercing . | . . . . Sneak Attacks . | . . . . Combat Hostiles . | . . . . Follow-up Attacks . | . . . . Damage Inflicted 2960 | 161 769 264 1766 Guns 2888 | 161 769 264 1694 Cannons . | . . . . Explosions . | . . . . Melee . | . . . . Ramming . | . . . . Kinetic . | . . . . Thermal 2960 | 161 769 264 1766 Explosive . | . . . . Electromagnetic . | . . . . Impact . | . . . . Slashing . | . . . . Piercing . | . . . . Highest Corruption . | . . . . Average Corruption . | . . . . Corruption Purged . | . . . . Corruption Blocked . | . . . . Overload Shots 8 | . . . 8 Effects 2 | . . . 2 Heat Surge 2 | . . . 2 Overflow Damage . | . . . . Projectiles . | . . . . Explosions . | . . . . Melee . | . . . . Knockbacks . | . . . . Impact . | . . . . Kinetic . | . . . . Secondary . | . . . . Self-Inflicted Damage . | . . . . Shots . | . . . . Rammed . | . . . . Targets Rammed . | . . . . Kicked . | . . . . Crushed . | . . . . Highest Temperature 378 | 156 378 285 320 Average Temperature 84 | 59 94 110 66 Received Heat Transfer 498 | . 126 . 372 Siege Activations . | . . . . Martial Activations . | . . . . Shielding Activations . | . . . . Robots Disrupted . | . . . . Combat Hostiles . | . . . . Robots Corrupted . | . . . . Combat Hostiles . | . . . . Parts Fried . | . . . . Impact Corruptions . | . . . . Robots Melted 1 | . 1 . . Combat Hostiles 1 | . 1 . . Parts Melted 17 | 4 8 . 5 Heat Transferred 7996 | 555 2408 624 4409 Parts Sabotaged . | . . . . Parts Stolen . | . . . . Parts Stripped . | . . . . Power Chain Reactions . | . . . . Alert | -11 -10 -10 -10 ------- Run | Yrd Mat Min Sub Maximum Alert Level . | . . . . Low Security (%) 100 | 100 100 100 . Level 1 . | . . . . Level 2 . | . . . . Level 3 . | . . . . Level 4 . | . . . . Level 5 . | . . . . High Security . | . . . . Max Security . | . . . . Peak Influence 67 | 10 67 65 . Initial . | . . . . Average 5 | 1 7 3 . Influence Increases 688 | 30 367 91 200 Destroy 0b10 Robot/C 420 | . 220 60 140 Destroy 0b10 Robot/NC 55 | 30 25 . . Destroy Leader 58 | . 48 10 . Trap Triggered on 0b10 10 | . 10 . . Successful Hack 36 | . 30 6 . Disable Machine 4 | . 4 . . Lose Combat Pursuer 105 | . 30 15 60 Influence Decreases 688 | 30 367 91 200 Time Decay 668 | 30 367 91 180 Lost Part 20 | . . . 20 Squads Dispatched 1 | . 1 . . Investigation 1 | . 1 . . Extermination . | . . . . Reinforcement . | . . . . Assault . | . . . . Garrison . | . . . . Intercept . | . . . . Searches Triggered . | . . . . Construction Impeded . | . . . . Haulers Reinforced . | . . . . Active Scanning Responses . | . . . . Cargo Convoy Interrupts . | . . . . Stealth | -11 -10 -10 -10 --------- Run | Yrd Mat Min Sub Distress Signals 1 | . 1 . . Communications Jammed . | . . . . Distress Signals . | . . . . Times Spotted 42 | . 15 4 23 Peak Tracking Total 4 | . 4 2 4 Tactical Retreats 4 | . 1 1 2 Traps | -11 -10 -10 -10 ------- Run | Yrd Mat Min Sub Traps Triggered 1 | . 1 . . Indirectly . | . . . . Trap Hack Attempts . | . . . . Triggered . | . . . . Disarmed . | . . . . Reprogrammed 4 | . 4 . . Reused 1 | . 1 . . Traps Extracted . | . . . . Installed . | . . . . Triggered 1 | . 1 . . Machines | -11 -10 -10 -10 ---------- Run | Yrd Mat Min Sub Machines Disabled 3 | . 1 . 2 Max in Single Turn 1 | . 1 . 1 Machines Repaired . | . . . . Machines Dismantled . | . . . . Machines Sabotaged . | . . . . Overloaded Fab Kills . | . . . . Hacking | -11 -10 -10 -10 --------- Run | Yrd Mat Min Sub Machines Accessed 15 | . 10 1 4 Terminals 9 | . 8 1 . Fabricators . | . . . . Repair Stations . | . . . . Recycling Units 2 | . 2 . . Scanalyzers . | . . . . Garrison Access . | . . . . Total Hacks 45 | . 34 2 9 Successful 31 | . 21 1 9 Failed 14 | . 13 1 . Catastrophic . | . . . . Database Lockouts . | . . . . Manual 25 | . 25 . . Terminals 33 | . 31 2 . Fabricators . | . . . . Repair Stations . | . . . . Recycling Units 3 | . 3 . . Scanalyzers . | . . . . Garrison Access . | . . . . Terminal Hacks 29 | . 19 1 9 Record 6 | . . . 6 Part Schematic 13 | . 13 . . Robot Analysis 3 | . 3 . . Open Door 1 | . . . 1 Level Access Points 1 | . . 1 . Disarm Traps 1 | . 1 . . Reprogram Traps 2 | . 2 . . Proto ID Catalog 1 | . . . 1 Release Object 1 | . . . 1 Fabricator Hacks . | . . . . Repair Station Hacks . | . . . . Recycling Unit Hacks 2 | . 2 . . Retrieve Components 2 | . 2 . . Scanalyzer . | . . . . Garrison Access Hacks . | . . . . Unauthorized Hacks . | . . . . Terminals . | . . . . Fabricators . | . . . . Repair Stations . | . . . . Recycling Units . | . . . . Scanalyzers . | . . . . Garrison Access . | . . . . Data Cores Recovered . | . . . . Used . | . . . . Hacking Detections 9 | . 8 1 . Full Trace Events 3 | . 3 . . Feedback Events . | . . . . Feedback Blocked . | . . . . Robot Schematics Acquired . | . . . . Robots Built . | . . . . Authchips . | . . . . Time . | . . . . Total Robot Build Rating . | . . . . Part Schematics Acquired 13 | . 13 . . Parts Built . | . . . . Authchips . | . . . . Time . | . . . . Total Part Build Rating . | . . . . Part Studies Acquired . | . . . . Parts Repaired . | . . . . Time . | . . . . Parts Recycled . | . . . . Recycled Matter . | . . . . Retrieved Matter . | . . . . Retrieved Components 19 | . 19 . . Parts Scanalyzed . | . . . . Part Schematics Acquired . | . . . . Parts Damaged . | . . . . Bothacking | -11 -10 -10 -10 ------------ Run | Yrd Mat Min Sub Used RIF Installer . | . . . . Robots Hacked . | . . . . Non-combat . | . . . . Combat . | . . . . Robot Hacks Applied . | . . . . Relay Couplers Released . | . . . . Fabnet Peak Effective % . | . . . . Robots Rewired . | . . . . Allies Hacked . | . . . . Hacks Repelled . | . . . . Allies | -11 -10 -10 -10 -------- Run | Yrd Mat Min Sub Total Allies . | . . . . Largest Group . | . . . . Highest-Rated Group . | . . . . Highest-Rated Ally . | . . . . Total Orders . | . . . . Ally Attacks . | . . . . Total Damage . | . . . . Kills . | . . . . Allies Corrupted . | . . . . Allies Melted . | . . . . Intel | -11 -10 -10 -10 ------- Run | Yrd Mat Min Sub Active Infowar (turns) 4713 | 122 1443 1039 2109 Sensors 3816 | . 1421 1039 1356 Terrain 1656 | . . 849 807 Structural 4713 | 122 1443 1039 2109 Robot Analysis Total 3 | . 3 . . Derelict Logs Recovered 4 | . . 1 3 Drone Launches . | . . . . Drone Recoveries . | . . . . Exploration | -11 -10 -10 -10 ------------- Run | Yrd Mat Min Sub Turns Passed 5056 | 130 1443 1039 2444 Spaces Moved 2901 | 69 802 591 1439 Core 155 | 24 . . 131 Treads 1725 | 45 802 591 287 Legs 1021 | . . . 1021 Wheels . | . . . . Hover . | . . . . Flight . | . . . . Fastest Speed 50 | 50 160 160 50 Average Speed 151 | 133 160 160 144 Slowest Speed 320 | 160 160 160 320 Overloaded Moves . | . . . . Propulsion Burnouts . | . . . . Robots Hopped . | . . . . Potential Cave-ins . | . . . . Cave-ins Triggered . | . . . . Exploration Rate (%) 68 | 4 100 98 72 Regions Visited 3 Branch Regions 2 Pre-discovered Areas 3 | . . 1 2 Known Exits Taken 3 | 1 1 1 . Unknown Exits Taken . | . . . . Scrap Searched 3 | . . . 3 Spaces Dug 1 | . . . 1 Terrain Destroyed 1 | . . . 1 Melee . | . . . . Projectile 1 | . . . 1 AOE . | . . . . Terrain Rammed . | . . . . Walls Destroyed . | . . . . Machines Disabled . | . . . . Actions | -11 -10 -10 -10 --------- Run | Yrd Mat Min Sub Total 3272 | 91 883 662 1636 Wait 165 | . 32 51 82 Move 2898 | 68 801 590 1439 Hop . | . . . . Pick Up 17 | 9 3 2 3 Fast Attach 4 | . 1 1 2 Attach 15 | 6 1 1 7 Detach 1 | . . . 1 Swap 9 | . 5 1 3 Drop 9 | . 2 3 4 Fire 154 | 8 38 13 95 Melee . | . . . . Ram . | . . . . Kick . | . . . . Crush . | . . . . Escape Stasis . | . . . . Rewire . | . . . . Trap . | . . . . Miscellaneous . | . . . . Route ------- -11/Scrapyard -10/Materials (discovered 4 exits: *Mat x2 / *Min / *Sub) -10/Mines (discovered 3 exits: *Mat x2 / *Sub) -10/Subcaves (discovered 2 exits: *Mat / *Rec) History --------- Turn | Location | Event 10 | -11/Scrapyard | Identified exit to Materials 10 | -11/Scrapyard | Discovered exit to Materials (range 16) 131 | -11/Scrapyard | Entered Materials 131 | -10/Materials | Evolved 1 slot: Utility x1 308 | -10/Materials | Build established: Hacker-Mutant 741 | -10/Materials | Identified exit to Subcaves 741 | -10/Materials | Discovered exit to Subcaves (range 14) 898 | -10/Materials | Identified exit to Materials 898 | -10/Materials | Discovered exit to Materials (range 11) 1020 | -10/Materials | Discovered exit to Materials (range 15) 1187 | -10/Materials | Identified exit to Mines 1187 | -10/Materials | Discovered exit to Mines (range 16) 1574 | -10/Materials | Entered Mines 1591 | -10/Mines | Met a Derelict bent on vengeance 1607 | -10/Mines | Assembled infested the area 1612 | -10/Mines | Assisted by a Guerilla fighting off Assembled 1756 | -10/Mines | Found a damaged Exp. Sensor Array with a note attached 1760 | -10/Mines | Found Prototype Device 1760 | -10/Mines | Identified Exp. Sensor Array 1874 | -10/Mines | Learned location of Mines (-9) 2051 | -10/Mines | Build established: Hacker-Skirmisher 2607 | -10/Mines | Discovered exit to Subcaves (range 5) 2613 | -10/Mines | Entered Subcaves 2614 | -10/Subcaves | Approached by a straggling Scientist 2643 | -10/Subcaves | Shifting Twisted Machinery released Flamer 2648 | -10/Subcaves | Shifting Twisted Machinery released Mak. Power Source 2710 | -10/Subcaves | Visited 4L-MR0's lab 2877 | -10/Subcaves | Ambushed by angry Subdweller bent on revenge 2928 | -10/Subcaves | A swath of the cavern ceiling suddenly collapsed 2987 | -10/Subcaves | Learned location of Zion (-6) 2987 | -10/Subcaves | Met a Zionite searching for "candidates" 3254 | -10/Subcaves | Learned Materials emergency access door positions 3317 | -10/Subcaves | Build established: Scavenger-Skirmisher 3728 | -10/Subcaves | Build established: Scavenger-Mutant 3856 | -10/Subcaves | Visited Clippyterm 3860 | -10/Subcaves | Learned location of Deep Caves (-6) 3860 | -10/Subcaves | Learned Factory fabricator intel 3969 | -10/Subcaves | Identified exit to Materials 3969 | -10/Subcaves | Discovered exit to Materials (range 6) 4214 | -10/Subcaves | Learned Materials emergency access door positions 4268 | -10/Subcaves | Core integrity fell below 50% 4467 | -10/Subcaves | Build established: Hacker-Mutant 4514 | -10/Subcaves | Identified exit to Recycling 4514 | -10/Subcaves | Discovered exit to Recycling (range 9) 4719 | -10/Subcaves | Core integrity fell below 20% 4759 | -10/Subcaves | Lost 4 parts (1p1n1u1w) 4808 | -10/Subcaves | Found SUBCON Basin 5057 | -10/Subcaves | Destroyed by V7-3LM(R) with Subdweller Laser Last Messages --------------- 04521_ Flight Unit melted. 04521_ S-10 Pest destroyed. 04530_ Autobeam Turret destroyed. 04530_ Mak. Laser destroyed. 04540_ Mak. Leg destroyed. 04549_ Destroyed Autobeam. 04551_ Autobeam Turret suffers critical hit (Burn). 04553_ Subatomizers dissect the Lgt. Assault Rifle. 04553_ Autobeam Turret destroyed. 04646_ Acquired 10 matter. 04714_ Mining Laser destroyed. 04716_ Mak. Power Source destroyed. 04722_ Structural Scanner destroyed. 04728_ Mak. Leg destroyed. 04738_ 5B-9O6(R) destroyed. 04751_ Acquired Dirty Datajack. 04808_ Acquired SUBCON Basin. 04907_ Acquired 30 matter. Map ----- +----------------------------------------------------+ | ###### ???????"??????????????????????????????? | | ####????? #???????????????#??????????????? | | ###?? #??????????????? #??????????????? | | ## #????? ???????? #??????????????? | | #### #????? ?????? #??????????????? | | ##### ## #?????# ?????? #??????????????? | | ##### ## ?????????# ?????? ##?????????????? | | #### ### ??????????## ##??? ##?????????????? | | #########?????#####?## ###### ###????????????? | | ### ###?????######### #####""###????????????? | | ## ####???#### ##### " """""##????????????? | | ####??### ### " "" ""###????????????? | | ####### ######"" ##?????????????? | | ###### ##?###" ### #?????????????? | | ### ##?##" #####?????????????? | | ######### " ##????????????????? | | ######### "###????????????????? | | ### ## "" ## ###????????????????? | | ### ## "" " ##????????????????? | | ## #### "" """ """"##????????????????? | | ## #### " "###R""""######????????????? | | ## #### ### " ######????????????? | | # #### #### %### """""" ##????????????? | | #### ### & %*! """" ##????????????? | | ### ### ##&* """""""##????????????? | | #### ########=@""""" ""##????????????? | | ##### ########" " ###????????????? | | ####### ######### ###????????????? | | ###### # ###### ##????????????? | | #### # ##????????????? | | ### ## ### ##????????????? | | ## ####### # # #### ##????????????? | | ## ######## ########## ###????????????? | | ######??### ##########"" ###????????????? | | ###?????### #####" ###"" ##?????????????? | | ##??????## ####"" "### ##?????????????? | | ##??????## #####"""""""" ###?????????????? | | ###??????## ######""""""% ##?????????????? | | # ####??????### ######""""" &"## ##?????????????? | | #####???????## ###### &&"""######?????????????? | | ####????????#### ##### "&""""######?????????????? | | ####????????#### ##### " """"" ##?????????????? | | #####????????? ### #####" " "" #?????????????? | | ###?????????##### ##### # #####??????????????? | | ##???????????#### ##%*##""#####??????????????? | | ##????????????## # ""= """""###???????????????? | | ##########?????####" """"" ###??????????????? | | ###########????####"## """"" ###??????????????? | | ### ########?#### ####" ##??????????????? | | ######## ### #### ##??????????????? | +----------------------------------------------------+ Best States ------------- Heat Dissipation 39 Energy Generation 15 Energy Capacity 265 Matter Stores 300 Matter Capacity 300 Sight Range 16 Robot Scan Range 20 Terrain Scan Range 16 Terrain Scan Density 10 Armor Coverage 150 Resistance: KI 35 Resistance: TH 35 Resistance: EX 35 Resistance: EM 35 Resistance: I 35 Resistance: S 35 Resistance: P 35 Evasion (%) 55 Recoil Reduction 2 Offensive Hacking 20 Item Schematics ----------------- Sml. Storage Unit | -10/Materials | Hacked Med. Storage Unit | -10/Materials | Hacked Lrg. Storage Unit | -10/Materials | Hacked Hcp. Storage Unit | -10/Materials | Hacked Huge Storage Unit | -10/Materials | Hacked Cargo Storage Unit | -10/Materials | Hacked Mining Laser | -10/Materials | Hacked Sensor Array | -10/Materials | Hacked Structural Scanner | -10/Materials | Hacked Lgt. Treads | -10/Materials | Hacked Terrain Scanner | -10/Materials | Hacked Tractor Beam | -10/Materials | Hacked Transport Network Coupler | -10/Materials | Hacked Robot Schematics ------------------ None Fabricated ------------ Nothing Repaired ---------- Nothing Studied --------- None Alien Tech Used ----------------- None Achievements -------------- None Challenges ------------ None Game ------ Seed ModifiedGravmagNanovents Manual? 0 Play Time 00:20:14 Cumulative 293.6 hours Start 2026.01.20 @ 11:54:53 End 2026.01.20 @ 12:14:38 Sessions 1 Manual Loads 0 Difficulty Explorer Special Mode None Game No. 454 Rogue 0 Adventurer 0 Explorer 454 Win Type - Total 0 Types 0/0/0/0/0/0/0/0/0/0 Lore% 76 Gallery% 70 Achievement% 55 Wizard Run 0 Options --------- Layout 1 ASCII 0 Keyboard 0 Movement Mouse Keybinds 1 Fullscreen 1 Font 24/Smallcaps Map View 50x35 Zoom Use 0% Tactical HUD 1 Map Filters NONE Filters NONE Steam 1 RUN: 3a31dd3f-b91c-4a95-b604-70aab2a8b281